fUSD/lending_fUSD_20250514
["ID","MTS","AMOUNT","RATE_DAILY","PERIOD"]
[361031344,1747209120174,-8303.1,0.00014246,2]
[361031345,1747209120183,-2394.97,0.00014246,2]
[361031346,1747209120193,-635.51,0.00014246,2]
[361031347,1747209120202,-400.0,0.00014246,2]
[361031348,1747209120212,-635.86,0.00014246,2]
[361031349,1747209120222,-483.25,0.00014246,2]
[361031350,1747209120232,-400.0,0.00014246,2]
[361031351,1747209120242,-762.97,0.00014246,2]
[361031352,1747209120252,-400.0,0.00014246,2]
[361031353,1747209120262,-539.78,0.00014246,2]
[361031354,1747209120272,-400.0,0.00014246,2]
[361031355,1747209120282,-566.07,0.00014246,2]
[361031356,1747209120292,-400.0,0.00014246,2]
[361031357,1747209120302,-400.0,0.00014246,2]
[361031358,1747209120311,-3884.54,0.00014246,2]
[361031359,1747209120321,-9332.17,0.00014246,2]
[361031360,1747209120331,-400.0,0.00014246,2]
[361031361,1747209120341,-400.0,0.00014246,2]
[361031362,1747209120351,-521.21,0.00014246,2]
[361031363,1747209120366,-1359.75,0.00014246,2]
[361031364,1747209120375,-1804.54,0.00014246,2]
[361031365,1747209120385,-400.0,0.00014246,2]
[361031366,1747209120395,-3867.76,0.00014246,2]
[361031367,1747209120406,-1228.35,0.00014246,2]
[361031368,1747209120416,-454.4,0.00014246,2]
[361031369,1747209120425,-400.0,0.00014246,2]
[361031370,1747209120435,-470.84,0.00014246,2]
[361031371,1747209120446,-451.23,0.00014246,2]
[361031372,1747209120458,-3381.56,0.00014246,2]
[361031373,1747209120468,-1518.64,0.00014246,2]
[361031374,1747209120478,-3045.01,0.00014246,2]
[361031375,1747209120487,-7510.59,0.00014246,2]
[361031376,1747209120498,-983.94,0.00014246,2]
[361031377,1747209120508,-480.02,0.00014246,2]
[361031378,1747209120518,-616.03,0.00014246,2]
[361031379,1747209120528,-585.46,0.00014246,2]
[361031380,1747209120537,-400.0,0.00014246,2]
[361031381,1747209120548,-1727.32,0.00014246,2]
[361031382,1747209120557,-1174.5,0.00014246,2]
[361031383,1747209120567,-824.11,0.00014246,2]
[361031384,1747209120578,-400.0,0.00014246,2]
[361031385,1747209120588,-901.12,0.00014246,2]
[361031386,1747209120598,-400.0,0.00014246,2]
[361031387,1747209120608,-400.0,0.00014246,2]
[361031388,1747209120618,-400.0,0.00014246,2]
[361031389,1747209120628,-465.08,0.00014246,2]
[361031390,1747209120638,-975.74,0.00014246,2]
[361031391,1747209120648,-1658.78,0.00014246,2]
[361031392,1747209120658,-400.0,0.00014246,2]
[361031393,1747209120668,-700.75,0.00014246,2]
[361031394,1747209120678,-2190.3,0.00014246,2]
[361031395,1747209120688,-803.12,0.00014246,2]
[361031396,1747209120903,-400.0,0.00014246,2]
[361031397,1747209120914,-1386.9,0.00014246,2]
[361031398,1747209120924,-400.0,0.00014246,2]
[361031399,1747209120934,-400.0,0.00014246,2]
[361031400,1747209120943,-485.56,0.00014246,2]
[361031401,1747209120953,-1242.02,0.00014246,2]
[361031402,1747209120963,-790.06,0.00014246,2]
[361031403,1747209120973,-423.22668239,0.00014246,2]
[361031404,1747209120983,-400.0,0.00014246,2]
[361031405,1747209120994,-1050.16,0.00014246,2]
[361031406,1747209121004,-400.0,0.00014246,2]
[361031407,1747209121015,-21204.56,0.00014246,2]
[361031408,1747209121025,-1025.65,0.00014246,2]
[361031409,1747209121036,-400.0,0.00014246,2]
[361031410,1747209121046,-462.47,0.00014246,2]
[361031411,1747209121056,-489.88,0.00014246,2]
[361031412,1747209121066,-433.44,0.00014246,2]
[361031413,1747209121076,-1903.72,0.00014246,2]
[361031414,1747209121087,-903.36,0.00014246,2]
[361031415,1747209121097,-400.0,0.00014246,2]
[361031416,1747209121107,-460.59,0.00014246,2]
[361031417,1747209121117,-1352.46,0.00014246,2]
[361031418,1747209121127,-2297.07,0.00014246,2]
[361031419,1747209121136,-400.0,0.00014246,2]
[361031420,1747209121146,-5802.65,0.00014246,2]
[361031421,1747209121156,-713.5,0.00014246,2]
[361031422,1747209121166,-434.56,0.00014246,2]
[361031423,1747209121176,-1266.9,0.00014246,2]
[361031424,1747209121190,-1158.53,0.00014246,2]
[361031425,1747209121200,-1010.68,0.00014246,2]
[361031426,1747209121210,-484.69,0.00014246,2]
[361031427,1747209121219,-1095.0,0.00014246,2]
[361031428,1747209121229,-1932.75,0.00014246,2]
[361031429,1747209121238,-435.72,0.00014246,2]
[361031430,1747209121248,-1315.66,0.00014246,2]
[361031431,1747209121257,-457.59,0.00014246,2]
[361031432,1747209121267,-400.0,0.00014246,2]
[361031433,1747209121276,-496.1,0.00014246,2]
[361031434,1747209121286,-814.19,0.00014246,2]
[361031435,1747209121295,-459.36,0.00014246,2]
[361031436,1747209121305,-5005.62,0.00014246,2]
[361031437,1747209121314,-615.67,0.00014246,2]
[361031438,1747209121323,-4200.08,0.00014246,2]
[361031439,1747209121334,-402.79,0.00014246,2]
[361031440,1747209121343,-400.0,0.00014246,2]
[361031441,1747209121354,-1129.39,0.00014246,2]
[361031442,1747209121364,-695.95,0.00014246,2]
[361031443,1747209121374,-558.35,0.00014246,2]
[361031444,1747209121385,-900.7,0.00014246,2]
[361031445,1747209121395,-1206.83,0.00014246,2]
[361031446,1747209121406,-2565.38,0.00014246,2]
[361031447,1747209121417,-704.13,0.00014246,2]
[361031448,1747209121426,-400.0,0.00014246,2]
[361031449,1747209121436,-905.95,0.00014246,2]
[361031450,1747209121446,-461.69,0.00014246,2]
[361031451,1747209121458,-400.0,0.00014246,2]
[361031452,1747209121469,-400.0,0.00014246,2]
[361031453,1747209121479,-1026.15,0.00014246,2]
[361031454,1747209121489,-926.7,0.00014246,2]
[361031455,1747209121499,-720.88,0.00014246,2]
[361031456,1747209121509,-828.79,0.00014246,2]
[361031457,1747209121519,-696.91,0.00014246,2]
[361031458,1747209121529,-2110.67,0.00014246,2]
[361031459,1747209121539,-540.58,0.00014246,2]
[361031460,1747209121549,-400.0,0.00014246,2]
[361031461,1747209121559,-1784.16,0.00014246,2]
[361031462,1747209121569,-1232.7,0.00014246,2]
[361031463,1747209121579,-1246.63,0.00014246,2]
[361031464,1747209121589,-400.0,0.00014246,2]
[361031465,1747209121599,-400.0,0.00014246,2]
[361031466,1747209121609,-400.0,0.00014246,2]
[361031467,1747209121619,-1031.46,0.00014246,2]
[361031468,1747209121630,-415.13,0.00014246,2]
[361031469,1747209121639,-915.16,0.00014246,2]
[361031470,1747209121649,-614.08,0.00014246,2]
[361031471,1747209121659,-400.0,0.00014246,2]
[361031472,1747209121668,-400.0,0.00014246,2]
[361031473,1747209121678,-8117.6,0.00014246,2]
[361031474,1747209121687,-400.0,0.00014246,2]
[361031475,1747209121698,-1273.28,0.00014246,2]
[361031476,1747209121707,-400.0,0.00014246,2]
[361031477,1747209121717,-467.51939917,0.00014246,2]
[361031478,1747209121727,-400.0,0.00014246,2]
[361031479,1747209121736,-400.0,0.00014246,2]
[361031480,1747209121745,-2424.58,0.00014246,2]
[361031481,1747209121755,-447.54,0.00014246,2]
[361031482,1747209121765,-400.0,0.00014246,2]
[361031483,1747209121775,-723.09,0.00014246,2]
[361031484,1747209121786,-1958.39,0.00014246,2]
[361031485,1747209121796,-400.0,0.00014246,2]
[361031486,1747209121807,-2526.26,0.00014246,2]
[361031487,1747209121817,-422.1,0.00014246,2]
[361031488,1747209121827,-803.6,0.00014246,2]
[361031489,1747209121837,-2914.11,0.00014246,2]
[361031490,1747209121847,-8091.9,0.00014246,2]
[361031491,1747209121857,-599.26,0.00014246,2]
[361031492,1747209121867,-1722.0,0.00014246,2]
[361031493,1747209121877,-905.05,0.00014246,2]
[361031494,1747209121887,-805.31,0.00014246,2]
[361031495,1747209121898,-400.0,0.00014246,2]
[361031496,1747209121907,-400.0,0.00014246,2]
[361031497,1747209121917,-981.33,0.00014246,2]
[361031498,1747209121927,-400.0,0.00014246,2]
[361031499,1747209121937,-514.19668015,0.00014247,2]
[361031500,1747209121946,-1000.0,0.00014247,2]
[361031501,1747209121956,-1000.0,0.00014247,2]
[361031502,1747209121966,-1000.0,0.00014247,2]
[361031503,1747209121975,-1000.0,0.00014247,2]
[361031504,1747209121986,-1000.0,0.00014247,2]
[361031505,1747209121996,-498.55115444,0.00014247,2]
[361031506,1747209122005,-1000.0,0.00014247,2]
[361031507,1747209122015,-1000.0,0.00014247,2]
[361031508,1747209122026,-1000.0,0.00014247,2]
[361031509,1747209122036,-1000.0,0.00014247,2]
[361031510,1747209122046,-1000.0,0.00014247,2]
[361031511,1747209122055,-1000.0,0.00014247,2]
[361031512,1747209122065,-1000.0,0.00014247,2]
[361031513,1747209122075,-1000.0,0.00014247,2]
[361031514,1747209122084,-1000.0,0.00014247,2]
[361031515,1747209122094,-1000.0,0.00014247,2]
[361031516,1747209122103,-1000.0,0.00014247,2]
[361031517,1747209122112,-1000.0,0.00014247,2]
[361031518,1747209122122,-1000.0,0.00014247,2]
[361031519,1747209122132,-501.81502286,0.00014247,2]
[361031520,1747209122142,-1000.0,0.00014247,2]
[361031521,1747209122152,-1026.13932996,0.00014247,2]
[361031522,1747209122162,-544.58522127,0.00014247,2]
[361031523,1747209122171,-301.16825459,0.00014247,2]
[361031524,1747209122180,-1000.0,0.00014247,2]
[361031525,1747209122190,-1000.0,0.00014247,2]
[361031526,1747209122200,-1112.51701481,0.00014247,2]
[361031527,1747209122210,-552.0,0.00014247,2]
[361031528,1747209122220,-573.0,0.00014247,2]
[361031529,1747209122229,-251.29779058,0.0001426,2]
[361031530,1747209122239,-151.0,0.00014264,2]
[361031531,1747209122249,-208.808782,0.00014264,2]
[361031532,1747209122259,-151.0,0.00014264,2]
[361031533,1747209122268,-151.0,0.00014264,2]
[361031534,1747209122277,-151.0,0.00014264,2]
[361031535,1747209122286,-300.381756,0.00014264,2]
[361031536,1747209122296,-300.381756,0.00014264,2]
[361031537,1747209122306,-552.0,0.00014274,2]
[361031538,1747209122315,-573.0,0.00014274,2]
[361031539,1747209122325,-151.0,0.00014285,2]
[361031540,1747209122335,-1318.22,0.000143,2]
[361031541,1747209122344,-2201.57,0.000143,2]
[361031542,1747209122354,-552.0,0.00014302,2]
[361031543,1747209122372,-573.0,0.00014302,2]
[361031544,1747209122382,-573.27208539,0.00014329,2]
[361031545,1747209122391,-582.51512707,0.00014329,2]
[361031546,1747209122402,-370.91026638,0.0001434,2]
[361031547,1747209122412,-201.37144861,0.00014362,2]
[361031548,1747209122421,-5427.73282468,0.0001439,2]
[361031549,1747209122432,-151.0,0.00014504,2]
[361031550,1747209122441,-150.99,0.00014504,2]
[361031551,1747209122452,-150.99,0.00014504,2]
[361031552,1747209122462,-6926.34,0.00014504,2]
[361031553,1747209122473,-192.866883,0.00014519,2]
[361031554,1747209122482,-192.866883,0.00014519,2]
[361031555,1747209122493,-151.0,0.00014519,2]
[361031556,1747209122502,-158.931497,0.00014519,2]
[361031557,1747209122511,-335.708552,0.00014519,2]
[361031558,1747209122521,-335.708552,0.00014519,2]
[361031559,1747209122531,-151.0,0.00014519,2]
[361031560,1747209122542,-151.716808,0.00014519,2]
[361031561,1747209122553,-400.0,0.00014519,2]
[361031562,1747209122563,-528.13,0.00014519,2]
[361031563,1747209122572,-816.27,0.00014519,2]
[361031564,1747209122582,-679.38,0.00014519,2]
[361031565,1747209122591,-694.603253,0.00014519,2]
[361031566,1747209122601,-694.603253,0.00014519,2]
[361031567,1747209122611,-1053.164603,0.00014519,2]
[361031568,1747209122621,-1053.164603,0.00014519,2]
[361031569,1747209122630,-400.0,0.0001452,2]
[361031570,1747209122640,-151.0,0.0001452,2]
[361031571,1747209122650,-213.566755,0.0001452,2]
[361031572,1747209122658,-151.0,0.0001452,2]
[361031573,1747209122666,-151.0,0.0001452,2]
[361031574,1747209122675,-151.0,0.0001452,2]
[361031575,1747209122685,-151.0,0.0001452,2]
[361031576,1747209122694,-598.264816,0.0001452,2]
[361031577,1747209122702,-151.0,0.0001452,2]
[361031578,1747209122711,-703.18,0.0001452,2]
[361031579,1747209122721,-151.0,0.0001452,2]
[361031580,1747209122730,-235.889491,0.0001452,2]
[361031581,1747209122739,-235.889491,0.0001452,2]
[361031582,1747209122748,-596.11,0.0001452,2]
[361031583,1747209122757,-400.0,0.0001452,2]
[361031584,1747209122766,-711.57,0.0001452,2]
[361031585,1747209122775,-737.65,0.0001452,2]
[361031586,1747209122785,-672.9,0.0001452,2]
[361031587,1747209122794,-236.22503957,0.0001452,2]
[361031588,1747209122803,-460.32,0.0001452,2]
[361031589,1747209122812,-400.0,0.0001452,2]
[361031590,1747209122822,-400.0,0.0001452,2]
[361031591,1747209122830,-939.06,0.0001452,2]
[361031592,1747209122840,-436.72,0.0001452,2]
[361031593,1747209122849,-400.0,0.0001452,2]
[361031594,1747209122858,-1236.03,0.0001452,2]
[361031595,1747209122867,-882.64,0.0001452,2]
[361031596,1747209122876,-400.0,0.0001452,2]
[361031597,1747209122885,-400.0,0.0001452,2]
[361031598,1747209122896,-483.18,0.0001452,2]
[361031599,1747209122905,-423.82019992,0.0001452,2]
[361031600,1747209122915,-400.0,0.0001452,2]
[361031601,1747209122925,-400.0,0.0001452,2]
[361031602,1747209122935,-479.52,0.0001452,2]
[361031603,1747209122944,-400.0,0.0001452,2]
[361031604,1747209122954,-634.51,0.0001452,2]
[361031605,1747209122963,-435.37,0.0001452,2]
[361031606,1747209122972,-596.16,0.0001452,2]
[361031607,1747209122982,-494.69,0.0001452,2]
[361031608,1747209122992,-400.0,0.0001452,2]
[361031609,1747209123001,-400.0,0.0001452,2]
[361031610,1747209123010,-400.0,0.0001452,2]
[361031611,1747209123020,-599.12,0.0001452,2]
[361031612,1747209123030,-400.0,0.0001452,2]
[361031613,1747209123040,-1062.41,0.0001452,2]
[361031614,1747209123050,-400.0,0.0001452,2]
[361031615,1747209123060,-400.0,0.0001452,2]
[361031616,1747209123069,-1179.96,0.0001452,2]
[361031617,1747209123079,-450.9,0.0001452,2]
[361031618,1747209123088,-884.53,0.0001452,2]
[361031619,1747209123098,-420.35672071,0.0001452,2]
[361031620,1747209123108,-1027.84,0.0001452,2]
[361031621,1747209123117,-1395.43,0.0001452,2]
[361031622,1747209123127,-400.0,0.0001452,2]
[361031623,1747209123137,-543.81,0.0001452,2]
[361031624,1747209123147,-688.09,0.0001452,2]
[361031625,1747209123156,-540.49,0.0001452,2]
[361031626,1747209123166,-545.09,0.0001452,2]
[361031627,1747209123175,-1082.93,0.0001452,2]
[361031628,1747209123186,-476.99,0.0001452,2]
[361031629,1747209123195,-502.4,0.0001452,2]
[361031630,1747209123205,-400.0,0.0001452,2]
[361031631,1747209123214,-518.03,0.0001452,2]
[361031632,1747209123224,-400.0,0.0001452,2]
[361031633,1747209123233,-400.0,0.0001452,2]
[361031634,1747209123243,-400.0,0.0001452,2]
[361031635,1747209123253,-2119.41,0.0001452,2]
[361031636,1747209123262,-528.83,0.0001452,2]
[361031637,1747209123272,-1034.94,0.0001452,2]
[361031638,1747209123282,-521.6,0.0001452,2]
[361031639,1747209123368,-833.6,0.0001452,2]
[361031640,1747209123381,-1089.67,0.0001452,2]
[361031641,1747209123391,-855.81,0.0001452,2]
[361031642,1747209123400,-649.48,0.0001452,2]
[361031643,1747209123411,-662.78,0.0001452,2]
[361031644,1747209123421,-1112.52,0.0001452,2]
[361031645,1747209123431,-400.0,0.0001452,2]
[361031646,1747209123442,-450.15,0.0001452,2]
[361031647,1747209123452,-670.7,0.0001452,2]
[361031648,1747209123462,-665.82,0.0001452,2]
[361031649,1747209123472,-400.0,0.0001452,2]
[361031650,1747209123482,-400.0,0.0001452,2]
[361031651,1747209123495,-936.51,0.0001452,2]
[361031652,1747209123506,-1073.27,0.0001452,2]
[361031653,1747209123519,-1216.82,0.0001452,2]
[361031654,1747209123529,-549.67496957,0.0001452,2]
[361031655,1747209123540,-400.0,0.0001452,2]
[361031656,1747209123550,-400.0,0.0001452,2]
[361031657,1747209123559,-400.0,0.0001452,2]
[361031658,1747209123569,-909.1,0.0001452,2]
[361031659,1747209123581,-1630.94,0.0001452,2]
[361031660,1747209123591,-400.0,0.0001452,2]
[361031661,1747209123600,-565.83,0.0001452,2]
[361031662,1747209123610,-1329.57,0.0001452,2]
[361031663,1747209123621,-1847.25,0.0001452,2]
[361031664,1747209123630,-400.0,0.0001452,2]
[361031665,1747209123640,-400.0,0.0001452,2]
[361031666,1747209123649,-422.51,0.0001452,2]
[361031667,1747209123659,-400.0,0.0001452,2]
[361031668,1747209123669,-876.56,0.0001452,2]
[361031669,1747209123679,-2140.12,0.0001452,2]
[361031670,1747209123689,-571.96,0.0001452,2]
[361031671,1747209123698,-410.56,0.0001452,2]
[361031672,1747209123708,-892.67,0.0001452,2]
[361031673,1747209123718,-400.0,0.0001452,2]
[361031674,1747209123728,-400.0,0.0001452,2]
[361031675,1747209123738,-400.0,0.0001452,2]
[361031676,1747209123749,-400.0,0.0001452,2]
[361031677,1747209123760,-1074.21,0.0001452,2]
[361031678,1747209123770,-507.63,0.0001452,2]
[361031679,1747209123780,-2412.67,0.0001452,2]
[361031680,1747209123790,-400.0,0.0001452,2]
[361031681,1747209123800,-400.0,0.0001452,2]
[361031682,1747209123810,-400.0,0.0001452,2]
[361031683,1747209123820,-400.0,0.0001452,2]
[361031684,1747209123831,-1071.37,0.0001452,2]
[361031685,1747209123841,-400.0,0.0001452,2]
[361031686,1747209123851,-400.0,0.0001452,2]
[361031687,1747209123862,-585.74,0.0001452,2]
[361031688,1747209123871,-1055.84,0.0001452,2]
[361031689,1747209123881,-459.9436389,0.0001452,2]
[361031690,1747209123892,-3342.19,0.0001452,2]
[361031691,1747209123903,-1569.68,0.0001452,2]
[361031692,1747209123913,-1011.98,0.0001452,2]
[361031693,1747209123924,-436.998672,0.0001452,2]
[361031694,1747209123935,-437.7,0.0001452,2]
[361031695,1747209123946,-841.38,0.0001452,2]
[361031696,1747209123956,-2138.29,0.0001452,2]
[361031697,1747209123966,-400.0,0.0001452,2]
[361031698,1747209123975,-931.09,0.0001452,2]
[361031699,1747209123985,-400.03,0.0001452,2]
[361031700,1747209123996,-799.14,0.0001452,2]
[361031701,1747209124007,-561.99,0.0001452,2]
[361031702,1747209124018,-447.86,0.0001452,2]
[361031703,1747209124028,-1791.98,0.0001452,2]
[361031704,1747209124038,-1506.45,0.0001452,2]
[361031705,1747209124048,-1248.25,0.0001452,2]
[361031706,1747209124058,-500.31,0.0001452,2]
[361031707,1747209124069,-400.0,0.0001452,2]
[361031708,1747209124079,-466.29,0.0001452,2]
[361031709,1747209124089,-559.56,0.0001452,2]
[361031710,1747209124099,-400.0,0.0001452,2]
[361031711,1747209124110,-499.83,0.0001452,2]
[361031712,1747209124120,-400.0,0.0001452,2]
[361031713,1747209124130,-648.49,0.0001452,2]
[361031714,1747209124140,-400.0,0.0001452,2]
[361031715,1747209124150,-735.21,0.0001452,2]
[361031716,1747209124160,-2396.6,0.0001452,2]
[361031717,1747209124170,-488.25,0.0001452,2]
[361031718,1747209124180,-686.74,0.0001452,2]
[361031719,1747209124190,-663.93,0.0001452,2]
[361031720,1747209124201,-400.0,0.0001452,2]
[361031721,1747209124212,-400.0,0.0001452,2]
[361031722,1747209124222,-765.05,0.0001452,2]
[361031723,1747209124233,-400.0,0.0001452,2]
[361031724,1747209124245,-400.0,0.0001452,2]
[361031725,1747209124255,-837.82,0.0001452,2]
[361031726,1747209124266,-846.38,0.0001452,2]
[361031727,1747209124276,-400.0,0.0001452,2]
[361031728,1747209124287,-713.16,0.0001452,2]
[361031729,1747209124298,-544.35,0.0001452,2]
[361031730,1747209124308,-1073.49,0.0001452,2]
[361031731,1747209124319,-452.73,0.0001452,2]
[361031732,1747209124329,-400.0,0.0001452,2]
[361031733,1747209124339,-400.0,0.0001452,2]
[361031734,1747209124350,-610.73,0.0001452,2]
[361031735,1747209124362,-400.0,0.0001452,2]
[361031736,1747209124378,-1075.48,0.0001452,2]
[361031737,1747209124388,-400.0,0.0001452,2]
[361031738,1747209124398,-442.29,0.0001452,2]
[361031739,1747209124409,-400.0,0.0001452,2]
[361031740,1747209124419,-1807.34,0.0001452,2]
[361031741,1747209124430,-400.0,0.0001452,2]
[361031742,1747209124440,-561.75,0.0001452,2]
[361031743,1747209124452,-546.56,0.0001452,2]
[361031744,1747209124463,-504.1,0.0001452,2]
[361031745,1747209124473,-690.43,0.0001452,2]
[361031746,1747209124483,-400.0,0.0001452,2]
[361031747,1747209124497,-416.24,0.0001452,2]
[361031748,1747209124508,-400.0,0.0001452,2]
[361031749,1747209124519,-402.6,0.0001452,2]
[361031750,1747209124530,-400.0,0.0001452,2]
[361031751,1747209124541,-400.0,0.0001452,2]
[361031752,1747209124552,-1113.76,0.0001452,2]
[361031753,1747209124563,-1405.65,0.0001452,2]
[361031754,1747209124574,-468.31,0.0001452,2]
[361031755,1747209124584,-1001.39,0.0001452,2]
[361031756,1747209124595,-777.85,0.0001452,2]
[361031757,1747209124605,-665.02,0.0001452,2]
[361031758,1747209124615,-2209.78,0.0001452,2]
[361031759,1747209124624,-542.27,0.0001452,2]
[361031760,1747209124635,-400.0,0.0001452,2]
[361031761,1747209124644,-400.0,0.0001452,2]
[361031762,1747209124654,-1048.34,0.0001452,2]
[361031763,1747209124664,-400.0,0.0001452,2]
[361031764,1747209124674,-1451.38,0.0001452,2]
[361031765,1747209124684,-619.23,0.0001452,2]
[361031766,1747209124693,-2336.68,0.0001452,2]
[361031767,1747209124708,-845.06,0.0001452,2]
[361031768,1747209124718,-400.0,0.0001452,2]
[361031769,1747209124730,-1320.89,0.0001452,2]
[361031770,1747209124741,-400.0,0.0001452,2]
[361031771,1747209124754,-666.66,0.0001452,2]
[361031772,1747209124764,-663.81,0.0001452,2]
[361031773,1747209124774,-400.0,0.0001452,2]
[361031774,1747209124784,-400.0,0.0001452,2]
[361031775,1747209124794,-541.3,0.0001452,2]
[361031776,1747209124804,-400.0,0.0001452,2]
[361031777,1747209124814,-400.0,0.0001452,2]
[361031778,1747209124824,-1134.08,0.0001452,2]
[361031779,1747209124835,-445.33,0.0001452,2]
[361031780,1747209124845,-1257.84,0.0001452,2]
[361031781,1747209124854,-575.36,0.0001452,2]
[361031782,1747209124864,-212.78816408,0.0001452,2]
[361031783,1747209124874,-596.75681142,0.0001452,2]
[361031784,1747209124884,-1007.26,0.0001452,2]
[361031785,1747209124894,-400.0,0.0001452,2]
[361031786,1747209124904,-659.39,0.0001452,2]
[361031787,1747209124914,-1204.75,0.0001452,2]
[361031788,1747209124923,-400.98,0.0001452,2]
[361031789,1747209124933,-906.35,0.0001452,2]
[361031790,1747209124943,-1524.33,0.0001452,2]
[361031791,1747209124952,-466.88,0.0001452,2]
[361031792,1747209124961,-774.55,0.0001452,2]
[361031793,1747209124971,-400.0,0.0001452,2]
[361031794,1747209124981,-873.16,0.0001452,2]
[361031795,1747209124991,-523.37,0.0001452,2]
[361031796,1747209125003,-4342.01,0.0001452,2]
[361031797,1747209125013,-352.56,0.0001452,2]
[361031798,1747209125022,-3290.66,0.0001452,2]
[361031799,1747209125032,-620.73,0.0001452,2]
[361031800,1747209125041,-1318.63,0.0001452,2]
[361031801,1747209125050,-400.0,0.0001452,2]
[361031802,1747209125059,-794.74,0.0001452,2]
[361031803,1747209125068,-400.0,0.0001452,2]
[361031804,1747209125077,-496.52,0.0001452,2]
[361031805,1747209125087,-558.78,0.0001452,2]
[361031806,1747209125096,-400.0,0.0001452,2]
[361031807,1747209125105,-903.19,0.0001452,2]
[361031808,1747209125114,-824.62,0.0001452,2]
[361031809,1747209125123,-1186.62,0.0001452,2]
[361031810,1747209125132,-525.47,0.0001452,2]
[361031811,1747209125142,-400.0,0.0001452,2]
[361031812,1747209125152,-992.09,0.0001452,2]
[361031813,1747209125161,-507.48,0.0001452,2]
[361031814,1747209125171,-1186.0,0.0001452,2]
[361031815,1747209125181,-8303.1,0.0001452,2]
[361031816,1747209125191,-871.03,0.0001452,2]
[361031817,1747209125201,-2394.97,0.0001452,2]
[361031818,1747209125211,-635.51,0.0001452,2]
[361031819,1747209125221,-400.0,0.0001452,2]
[361031820,1747209125232,-635.86,0.0001452,2]
[361031821,1747209125242,-483.25,0.0001452,2]
[361031822,1747209125254,-411.18553146,0.0001452,2]
[361031823,1747209125264,-762.97,0.0001452,2]
[361031824,1747209125273,-400.0,0.0001452,2]
[361031825,1747209125284,-539.78,0.0001452,2]
[361031826,1747209125293,-400.0,0.0001452,2]
[361031827,1747209125302,-566.07,0.0001452,2]
[361031828,1747209125311,-400.0,0.0001452,2]
[361031829,1747209125319,-400.0,0.0001452,2]
[361031830,1747209125328,-3884.54,0.0001452,2]
[361031831,1747209125337,-9332.17,0.0001452,2]
[361031832,1747209125347,-400.0,0.0001452,2]
[361031833,1747209125357,-400.0,0.0001452,2]
[361031834,1747209125369,-521.21,0.0001452,2]
[361031835,1747209125380,-1359.75,0.0001452,2]
[361031836,1747209125390,-1804.54,0.0001452,2]
[361031837,1747209125400,-251.60134373,0.0001452,2]
[361031838,1747209125410,-3867.76,0.0001452,2]
[361031839,1747209125420,-1228.35,0.0001452,2]
[361031840,1747209125429,-454.4,0.0001452,2]
[361031841,1747209125440,-400.0,0.0001452,2]
[361031842,1747209125449,-470.84,0.0001452,2]
[361031843,1747209125459,-451.23,0.0001452,2]